[Event "FIDE Women World Blitz 2021"]
[Site "Warsaw"]
[Date "2021.12.30"]
[Round "11.15"]
[White "Zhukova, Natalia"]
[Black "Socko, Monika"]
[Result "0-1"]
[ECO "D36"]
[WhiteElo "2331"]
[BlackElo "2393"]
[Annotator "ChessBase"]
[PlyCount "190"]
[EventDate "2021.12.29"]
[EventType "swiss"]
[EventCountry "POL"]
[Tiebreak "Cut1 Buchholz"]
[SourceTitle "playchess.com"]
[Source "ChessBase"]
[SourceQuality "1"]
[TimeControl "180+2"]

1. c4 {[%emt 0:00:02]} e6 {[%emt 0:00:01]} 2. Nc3 {[%emt 0:00:01]} d5 {[%emt 0:
00:04]} 3. d4 {[%emt 0:00:01]} Nf6 {[%emt 0:00:02]} 4. cxd5 {[%emt 0:00:03]}
exd5 {[%emt 0:00:01]} 5. Bg5 {[%emt 0:00:02]} Be7 {[%emt 0:00:07]} 6. e3 {
[%emt 0:00:01]} O-O {[%emt 0:00:03]} 7. Bd3 {[%emt 0:00:03]} c6 {[%emt 0:00:02]
} 8. Nge2 {[%emt 0:00:05]} Nbd7 {[%emt 0:00:02]} 9. Qc2 {[%emt 0:00:04]} Re8 {
[%emt 0:00:04]} 10. O-O {[%emt 0:00:07]} h6 {[%emt 0:00:06]} 11. Bf4 {[%emt 0:
00:09]} Nf8 {[%emt 0:00:05]} 12. h3 {[%emt 0:00:15]} Ne6 {[%emt 0:00:01]} 13.
Bh2 {[%emt 0:00:06]} Ng5 {[%emt 0:00:01]} 14. f4 {[%emt 0:00:13]} Nge4 {
[%emt 0:00:12]} 15. Nxe4 {[%emt 0:00:11]} dxe4 {[%emt 0:00:06]} 16. Bc4 {
[%emt 0:00:29]} Bd6 {[%emt 0:00:09]} 17. f5 {[%emt 0:00:14]} Bxh2+ {[%emt 0:00:
15]} 18. Kxh2 {[%emt 0:00:01]} Bd7 {[%emt 0:00:11]} 19. g4 {[%emt 0:00:03]} Nd5
{[%emt 0:00:05]} 20. Qb3 {[%emt 0:00:07]} Qc7+ {[%emt 0:00:01]} 21. Kg2 {
[%emt 0:00:11]} Qd6 {[%emt 0:00:01]} 22. Nf4 {[%emt 0:00:53]} Nxf4+ {[%emt 0:
00:08]} 23. Rxf4 {[%emt 0:00:01]} Qf6 {[%emt 0:00:01]} 24. Qxb7 {[%emt 0:00:06]
} Red8 {[%emt 0:00:02]} 25. Qb3 {[%emt 0:00:03]} c5 {[%emt 0:00:05]} 26. Bd5 {
[%emt 0:00:03]} Rab8 {[%emt 0:00:01]} 27. Qc3 {[%emt 0:00:01]} cxd4 {[%emt 0:
00:04]} 28. Qxd4 {[%emt 0:00:04]} Rxb2+ {[%emt 0:00:05]} 29. Kg3 {[%emt 0:00:
01]} Qxd4 {[%emt 0:00:03]} 30. exd4 {[%emt 0:00:01]} e3 {[%emt 0:00:02]} 31.
Re4 {[%emt 0:00:03]} e2 {[%emt 0:00:01]} 32. Re1 {[%emt 0:00:03]} Bb5 {[%emt 0:
00:01]} 33. Bb3 {[%emt 0:00:02]} Rd2 {[%emt 0:00:03]} 34. Re7 {[%emt 0:00:03]}
Kh8 {[%emt 0:00:10]} 35. d5 {[%emt 0:00:02]} a5 {[%emt 0:00:02]} 36. a4 {
[%emt 0:00:07]} Ba6 {[%emt 0:00:07]} 37. Re3 {[%emt 0:00:01]} Rb2 {[%emt 0:00:
17]} 38. Rc3 {[%emt 0:00:07]} Rd2 {[%emt 0:00:40]} 39. Kf2 {[%emt 0:00:00]} Rb8
{[%emt 0:00:06]} 40. Bc2 {[%emt 0:00:03]} Rb2 {[%emt 0:00:03]} 41. Be4 {
[%emt 0:00:02]} Rb4 {[%emt 0:00:03]} 42. Bf3 {[%emt 0:00:01]} Rf4 {[%emt 0:00:
02]} 43. Kg3 {[%emt 0:00:02]} Rfd4 {[%emt 0:00:04]} 44. Re3 {[%emt 0:00:02]}
Bc4 {[%emt 0:00:05]} 45. Bxe2 {[%emt 0:00:01]} Bxd5 {[%emt 0:00:01]} 46. Bf3 {
[%emt 0:00:02]} Bc4 {[%emt 0:00:04]} 47. Re5 {[%emt 0:00:03]} R2d3 {[%emt 0:00:
03]} 48. Rxa5 {[%emt 0:00:02]} Bd5 {[%emt 0:00:01]} 49. Rf1 {[%emt 0:00:01]}
Bc6 {[%emt 0:00:04]} 50. Ra6 {[%emt 0:00:02]} Bxa4 {[%emt 0:00:02]} 51. Ra8+ {
[%emt 0:00:01]} Kh7 {[%emt 0:00:00]} 52. h4 {[%emt 0:00:01]} Rb4 {[%emt 0:00:
04]} 53. Rf2 {[%emt 0:00:02]} Bc6 {[%emt 0:00:01]} 54. Rc8 {[%emt 0:00:04]} Bb7
{[%emt 0:00:01]} 55. Rc7 {[%emt 0:00:01]} Rbb3 {[%emt 0:00:02]} 56. Rxf7 {
[%emt 0:00:06]} Rxf3+ {[%emt 0:00:02]} 57. Rxf3 {[%emt 0:00:01]} Bxf3 {[%emt 0:
00:04]} 58. Re7 {[%emt 0:00:03]} Bd5+ {[%emt 0:00:02]} 59. Kf4 {[%emt 0:00:01]}
Rb4+ {[%emt 0:00:01]} 60. Kg3 {[%emt 0:00:02]} Kg8 {[%emt 0:00:02]} 61. g5 {
[%emt 0:00:01]} hxg5 {[%emt 0:00:08]} 62. hxg5 {[%emt 0:00:01]} Rb7 {[%emt 0:
00:01]} 63. Re5 {[%emt 0:00:02]} Bc6 {[%emt 0:00:02]} 64. Rc5 {[%emt 0:00:03]}
Bd7 {[%emt 0:00:02]} 65. f6 {[%emt 0:00:02]} g6 {[%emt 0:00:01]} 66. Re5 {
[%emt 0:00:02]} Bf5 {[%emt 0:00:02]} 67. Rc5 {[%emt 0:00:03]} Kf7 {[%emt 0:00:
01]} 68. Kf4 {[%emt 0:00:01]} Rb4+ {[%emt 0:00:00]} 69. Kf3 {[%emt 0:00:04]}
Bd7 {[%emt 0:00:04]} 70. Re5 {[%emt 0:00:01]} Be6 {[%emt 0:00:01]} 71. Rc5 {
[%emt 0:00:02]} Rb3+ {[%emt 0:00:01]} 72. Kf4 {[%emt 0:00:01]} Rb7 {[%emt 0:00:
03]} 73. Ke5 {[%emt 0:00:01]} Bd7 {[%emt 0:00:02]} 74. Kd6 {[%emt 0:00:02]} Bg4
{[%emt 0:00:03]} 75. Rc4 {[%emt 0:00:02]} Rd7+ {[%emt 0:00:02]} 76. Ke5 {
[%emt 0:00:01]} Bf3 {[%emt 0:00:03]} 77. Kf4 {[%emt 0:00:07]} Bd5 {[%emt 0:00:
03]} 78. Rb4 {[%emt 0:00:02]} Rc7 {[%emt 0:00:02]} 79. Rb1 {[%emt 0:00:02]} Be6
{[%emt 0:00:04]} 80. Rh1 {[%emt 0:00:03]} Rc4+ {[%emt 0:00:01]} 81. Ke3 {
[%emt 0:00:04]} Rg4 {[%emt 0:00:12]} 82. Rh7+ {[%emt 0:00:01]} Kf8 {[%emt 0:00:
01]} 83. Re7 {[%emt 0:00:02]} Bf5 {[%emt 0:00:07]} 84. Ra7 {[%emt 0:00:03]}
Rxg5 {[%emt 0:00:02]} 85. Kf4 {[%emt 0:00:01]} Rg4+ {[%emt 0:00:00]} 86. Ke5 {
[%emt 0:00:01]} Re4+ {[%emt 0:00:01]} 87. Kd5 {[%emt 0:00:00]} Re1 {[%emt 0:00:
03]} 88. Rc7 {[%emt 0:00:03]} g5 {[%emt 0:00:02]} 89. Rg7 {[%emt 0:00:02]} g4 {
[%emt 0:00:01]} 90. Rg5 {[%emt 0:00:01]} Be6+ {[%emt 0:00:03]} 91. Kd6 {
[%emt 0:00:01]} Kf7 {[%emt 0:00:01]} 92. Rh5 {[%emt 0:00:03]} Kxf6 {[%emt 0:00:
03]} 93. Rh6+ {[%emt 0:00:02]} Kf5 {[%emt 0:00:00]} 94. Rh5+ {[%emt 0:00:01]}
Kf4 {[%emt 0:00:01]} 95. Rh7 {[%emt 0:00:01]} Bf5 {[%emt 0:00:02]} 0-1

[Event "FIDE Women World Blitz 2021"]
[Site "Warsaw"]
[Date "2021.12.30"]
[Round "11.16"]
[White "Mammadova, Gulnar"]
[Black "Balajayeva, Khanim"]
[Result "0-1"]
[ECO "C55"]
[WhiteElo "2395"]
[BlackElo "2369"]
[Annotator "NA"]
[PlyCount "68"]
[EventDate "2021.12.29"]
[EventType "swiss"]
[EventCountry "POL"]
[Tiebreak "Cut1 Buchholz"]
[SourceTitle "playchess.com"]
[Source "ChessBase"]
[SourceQuality "1"]
[TimeControl "180+2"]

1. e4 {[%emt 0:11:34]} e5 {[%emt 0:00:01]} 2. Nf3 Nc6 3. Bc4 Nf6 {[%emt 0:00:
01]} 4. d3 {[%emt 0:00:02]} Be7 {[%emt 0:00:07]} 5. O-O {[%emt 0:00:03]} d6 {
[%emt 0:00:02]} 6. a4 {[%emt 0:00:02]} O-O {[%emt 0:00:01]} 7. Re1 {[%emt 0:00:
02]} Na5 {[%emt 0:00:05]} 8. Ba2 c5 9. c3 {[%emt 0:00:02]} Nc6 10. h3 {[%emt 0:
00:05]} h6 {[%emt 0:00:04]} 11. Nbd2 {[%emt 0:00:05]} Re8 {[%emt 0:00:08]} 12.
Nf1 {[%emt 0:00:05]} Bf8 {[%emt 0:00:03]} 13. Ng3 Be6 {[%emt 0:00:18]} 14. d4 {
[%emt 0:00:14]} Bxa2 {[%emt 0:00:18]} 15. Rxa2 cxd4 {[%emt 0:00:02]} 16. cxd4 {
[%emt 0:00:01]} exd4 {[%emt 0:00:08]} 17. Nxd4 {[%emt 0:00:02]} Nxd4 {[%emt 0:
00:28]} 18. Qxd4 Nd7 {[%emt 0:00:35]} 19. Bf4 {[%emt 0:00:18]} Ne5 {[%emt 0:00:
11]} 20. Ra3 {[%emt 0:00:26]} Qa5 {[%emt 0:00:07]} 21. Rd1 {[%emt 0:00:26]}
Rac8 {[%emt 0:00:07]} 22. Nf5 {[%emt 0:00:01]} Qa6 {[%emt 0:00:26]} 23. Nxd6 {
[%emt 0:00:15]} Bxd6 {[%emt 0:00:03]} 24. Qxd6 Qxd6 25. Rxd6 {[%emt 0:00:02]}
Nc4 26. e5 {[%emt 0:00:24]} Nxa3 {[%emt 0:00:02]} 27. bxa3 Rc4 28. Be3 {
[%emt 0:00:03]} Rxa4 {[%emt 0:00:02]} 29. Rd7 {[%emt 0:00:02]} b6 {[%emt 0:00:
02]} 30. f4 {[%emt 0:00:03]} Rxa3 31. Kf2 Rc8 {[%emt 0:00:01]} 32. Bd4 {
[%emt 0:00:18]} Rc2+ {[%emt 0:00:05]} 33. Kf1 {[%emt 0:00:04]} Rd3 {[%emt 0:00:
09]} 34. e6 {[%emt 0:00:03]} Rd1# 0-1

[Event "FIDE Women World Blitz 2021"]
[Site "Warsaw"]
[Date "2021.12.30"]
[Round "11.17"]
[White "Girya, Olga"]
[Black "Mamedjarova, Turkan"]
[Result "1-0"]
[ECO "E15"]
[WhiteElo "2402"]
[BlackElo "2264"]
[Annotator "NA"]
[PlyCount "67"]
[EventDate "2021.12.29"]
[EventType "swiss"]
[EventCountry "POL"]
[Tiebreak "Cut1 Buchholz"]
[SourceTitle "playchess.com"]
[Source "ChessBase"]
[SourceQuality "1"]
[TimeControl "180+2"]

1. d4 {[%emt 0:00:00]} Nf6 {[%emt 0:00:01]} 2. Nf3 {[%emt 0:00:02]} e6 {
[%emt 0:00:01]} 3. c4 {[%emt 0:00:00]} b6 {[%emt 0:00:03]} 4. g3 {[%emt 0:00:
01]} Ba6 {[%emt 0:00:01]} 5. b3 {[%emt 0:00:01]} Bb4+ {[%emt 0:00:04]} 6. Bd2 {
[%emt 0:00:01]} Bxd2+ {[%emt 0:00:14]} 7. Qxd2 {[%emt 0:00:03]} O-O {[%emt 0:
00:02]} 8. Nc3 {[%emt 0:00:01]} d5 {[%emt 0:00:03]} 9. cxd5 {[%emt 0:00:01]}
exd5 {[%emt 0:00:01]} 10. Bg2 {[%emt 0:00:02]} Re8 {[%emt 0:00:11]} 11. Ne5 {
[%emt 0:00:03]} Bb7 {[%emt 0:00:08]} 12. O-O {[%emt 0:00:03]} c5 {[%emt 0:00:
10]} 13. e3 {[%emt 0:00:14]} cxd4 {[%emt 0:00:12]} 14. Qxd4 {[%emt 0:00:07]}
Nbd7 {[%emt 0:00:19]} 15. Nxd7 {[%emt 0:00:02]} Qxd7 {[%emt 0:00:01]} 16. Rac1
{[%emt 0:00:02]} Rad8 {[%emt 0:00:08]} 17. Rfd1 {[%emt 0:00:04]} Qf5 {[%emt 0:
00:03]} 18. Nb5 {[%emt 0:00:25]} h6 {[%emt 0:00:23]} 19. Qb2 {[%emt 0:00:05]}
Ne4 {[%emt 0:00:15]} 20. Rc7 {[%emt 0:00:12]} Bc8 {[%emt 0:00:10]} 21. Rxa7 {
[%emt 0:00:25]} Qh5 {[%emt 0:00:06]} 22. Rc1 {[%emt 0:00:06]} Ng5 {[%emt 0:00:
13]} 23. Nd4 {[%emt 0:00:09]} Bh3 {[%emt 0:00:06]} 24. Qe2 {[%emt 0:00:30]} Qg6
{[%emt 0:00:11]} 25. Bxh3 {[%emt 0:00:17]} Nxh3+ {[%emt 0:00:02]} 26. Kf1 {
[%emt 0:00:12]} Ng5 {[%emt 0:00:14]} 27. Qg4 {[%emt 0:00:21]} Re4 {[%emt 0:00:
05]} 28. Qf5 {[%emt 0:00:02]} Qh5 {[%emt 0:00:05]} 29. h4 {[%emt 0:00:04]} g6 {
[%emt 0:00:07]} 30. Qf6 {[%emt 0:00:00]} Rde8 {[%emt 0:00:02]} 31. hxg5 {
[%emt 0:00:06]} Rf8 {[%emt 0:00:08]} 32. Kg2 {[%emt 0:00:04]} Qg4 {[%emt 0:00:
07]} 33. gxh6 {[%emt 0:00:05]} Ree8 {[%emt 0:00:09]} 34. Qg7# {[%emt 0:00:01]}
1-0

[Event "FIDE Women World Blitz 2021"]
[Site "Warsaw"]
[Date "2021.12.30"]
[Round "11.18"]
[White "Michna, Marta"]
[Black "Osmak, Yuliia"]
[Result "0-1"]
[ECO "A81"]
[WhiteElo "2312"]
[BlackElo "2198"]
[Annotator "NA"]
[PlyCount "42"]
[EventDate "2021.12.29"]
[EventType "swiss"]
[EventCountry "POL"]
[Tiebreak "Cut1 Buchholz"]
[SourceTitle "playchess.com"]
[Source "ChessBase"]
[SourceQuality "1"]
[TimeControl "180+2"]

1. d4 {[%emt 0:00:01]} f5 {[%emt 0:00:03]} 2. g3 {[%emt 0:00:03]} Nf6 {[%emt 0:
00:01]} 3. Bg2 {[%emt 0:00:01]} g6 {[%emt 0:00:02]} 4. Nh3 {[%emt 0:00:08]} Bg7
{[%emt 0:00:06]} 5. c3 {[%emt 0:00:00]} d6 {[%emt 0:00:04]} 6. Qb3 {[%emt 0:00:
08]} Nc6 {[%emt 0:00:20]} 7. Ng5 {[%emt 0:00:10]} d5 {[%emt 0:00:09]} 8. h4 {
[%emt 0:00:05]} e5 {[%emt 0:00:14]} 9. dxe5 {[%emt 0:00:19]} Nxe5 {[%emt 0:00:
03]} 10. Bf4 {[%emt 0:00:03]} Neg4 {[%emt 0:00:57]} 11. Nd2 {[%emt 0:00:28]} h6
{[%emt 0:00:07]} 12. Nh3 {[%emt 0:00:12]} Qe7 {[%emt 0:00:28]} 13. O-O {
[%emt 0:00:35]} c6 {[%emt 0:00:02]} 14. Nf3 {[%emt 0:00:06]} O-O {[%emt 0:00:
07]} 15. Nd4 {[%emt 0:00:06]} Kh7 {[%emt 0:00:06]} 16. a4 {[%emt 0:00:11]} a5 {
[%emt 0:00:12]} 17. Qa3 {[%emt 0:00:08]} Qxa3 {[%emt 0:00:03]} 18. Rxa3 {
[%emt 0:00:01]} Re8 {[%emt 0:00:04]} 19. Raa1 {[%emt 0:00:08]} Bd7 {[%emt 0:00:
03]} 20. Rfe1 {[%emt 0:00:12]} Rac8 {[%emt 0:00:06]} 21. Rad1 {[%emt 0:00:05]}
b6 {[%emt 0:00:05]} 0-1

[Event "FIDE Women World Blitz 2021"]
[Site "Warsaw"]
[Date "2021.12.30"]
[Round "11.19"]
[White "Lach, Aleksandra"]
[Black "Batsiashvili, Nino"]
[Result "1-0"]
[ECO "C28"]
[WhiteElo "2204"]
[BlackElo "2491"]
[Annotator "ChessBase"]
[PlyCount "94"]
[EventDate "2021.12.29"]
[EventType "swiss"]
[EventCountry "POL"]
[Tiebreak "Cut1 Buchholz"]
[SourceTitle "playchess.com"]
[Source "ChessBase"]
[SourceQuality "1"]
[TimeControl "180+2"]

1. e4 {[%emt 0:00:02]} e5 {[%emt 0:00:00]} 2. Nc3 {[%emt 0:00:11]} Nc6 {
[%emt 0:00:01]} 3. Bc4 {[%emt 0:00:03]} Nf6 {[%emt 0:00:05]} 4. d3 {[%emt 0:00:
01]} Na5 {[%emt 0:00:03]} 5. Nge2 {[%emt 0:00:09]} Nxc4 {[%emt 0:00:02]} 6.
dxc4 {[%emt 0:00:01]} Bc5 {[%emt 0:00:03]} 7. Be3 {[%emt 0:00:02]} Bxe3 {
[%emt 0:00:02]} 8. fxe3 {[%emt 0:00:01]} d6 {[%emt 0:00:03]} 9. Qd3 {[%emt 0:
00:08]} O-O {[%emt 0:00:19]} 10. O-O-O {[%emt 0:00:04]} a6 11. c5 {[%emt 0:00:
05]} Be6 {[%emt 0:00:11]} 12. cxd6 {[%emt 0:00:02]} cxd6 {[%emt 0:00:01]} 13.
Qxd6 {[%emt 0:00:09]} Qa5 {[%emt 0:00:01]} 14. Qa3 {[%emt 0:00:00]} Qxa3 15.
bxa3 {[%emt 0:00:01]} Rac8 {[%emt 0:00:12]} 16. Kb2 {[%emt 0:00:05]} Rc4 {
[%emt 0:00:04]} 17. Rd3 {[%emt 0:00:11]} Nxe4 {[%emt 0:00:16]} 18. Nxe4 {
[%emt 0:00:01]} Rxe4 {[%emt 0:00:01]} 19. Ng3 {[%emt 0:00:01]} Rc4 {[%emt 0:00:
02]} 20. e4 {[%emt 0:00:01]} Rfc8 {[%emt 0:00:06]} 21. c3 Kf8 {[%emt 0:00:03]}
22. Rhd1 {[%emt 0:00:10]} g6 {[%emt 0:00:07]} 23. Re3 {[%emt 0:00:03]} Ke7 {
[%emt 0:00:03]} 24. Nf1 {[%emt 0:00:22]} R4c6 {[%emt 0:00:12]} 25. Nd2 {
[%emt 0:00:05]} Rd8 {[%emt 0:00:02]} 26. Kc2 {[%emt 0:00:20]} Rcd6 {[%emt 0:00:
03]} 27. Ree1 {[%emt 0:00:08]} Bxa2 {[%emt 0:00:08]} 28. c4 {[%emt 0:00:16]}
Rd4 {[%emt 0:00:11]} 29. Kc3 {[%emt 0:00:08]} Rc8 {[%emt 0:00:07]} 30. Nf3 {
[%emt 0:00:07]} Rdxc4+ {[%emt 0:00:01]} 31. Kb2 {[%emt 0:00:01]} Rc2+ {[%emt 0:
00:02]} 32. Ka1 {[%emt 0:00:00]} f6 {[%emt 0:00:07]} 33. Re3 {[%emt 0:00:10]}
Be6 {[%emt 0:00:02]} 34. Ne1 {[%emt 0:00:08]} R2c3 {[%emt 0:00:12]} 35. Red3 {
[%emt 0:00:26]} Rc1+ {[%emt 0:00:07]} 36. Kb2 {[%emt 0:00:27]} R8c4 {[%emt 0:
01:07]} 37. Rxc1 Rxe4 38. Nf3 {[%emt 0:00:00]} Re2+ {[%emt 0:00:04]} 39. Rd2 {
[%emt 0:00:00]} Re3 {[%emt 0:00:02]} 40. Rc3 {[%emt 0:00:00]} Re4 {[%emt 0:00:
02]} 41. Rc7+ {[%emt 0:00:00]} Ke8 {[%emt 0:00:01]} 42. Rxb7 {[%emt 0:00:00]}
h5 {[%emt 0:00:03]} 43. Rd6 {[%emt 0:00:00]} Re2+ {[%emt 0:00:02]} 44. Kc3 {
[%emt 0:00:00]} Bf5 {[%emt 0:00:03]} 45. Rxf6 {[%emt 0:00:00]} Rc2+ {[%emt 0:
00:02]} 46. Kb3 {[%emt 0:00:00]} Rxg2 {[%emt 0:00:01]} 47. Rxa6 {[%emt 0:00:00]
} Bc8 {[%emt 0:00:08]} 1-0

[Event "FIDE Women World Blitz 2021"]
[Site "Warsaw"]
[Date "2021.12.30"]
[Round "11.20"]
[White "Kulon, Klaudia"]
[Black "Garcia Martin, Marta"]
[Result "1-0"]
[ECO "A13"]
[WhiteElo "2328"]
[BlackElo "2194"]
[Annotator "NA"]
[PlyCount "98"]
[EventDate "2021.12.29"]
[EventType "swiss"]
[EventCountry "POL"]
[Tiebreak "Cut1 Buchholz"]
[SourceTitle "playchess.com"]
[Source "ChessBase"]
[SourceQuality "1"]
[TimeControl "180+2"]

1. c4 {[%emt 0:00:01]} e6 {[%emt 0:00:01]} 2. g3 {[%emt 0:00:01]} d5 {[%emt 0:
00:01]} 3. Bg2 {[%emt 0:00:01]} dxc4 {[%emt 0:00:06]} 4. Nf3 {[%emt 0:00:00]}
c5 {[%emt 0:00:28]} 5. Na3 {[%emt 0:00:03]} Nc6 {[%emt 0:00:06]} 6. Nxc4 {
[%emt 0:00:02]} Nf6 {[%emt 0:00:09]} 7. O-O {[%emt 0:00:01]} Be7 {[%emt 0:00:
01]} 8. b3 {[%emt 0:00:01]} O-O {[%emt 0:00:02]} 9. Bb2 {[%emt 0:00:01]} Qc7 {
[%emt 0:00:26]} 10. Rc1 {[%emt 0:00:03]} b6 {[%emt 0:00:09]} 11. d4 {[%emt 0:
00:03]} Rd8 {[%emt 0:00:14]} 12. e3 {[%emt 0:00:15]} Bb7 {[%emt 0:00:03]} 13.
Qe2 {[%emt 0:00:03]} cxd4 {[%emt 0:00:17]} 14. Nce5 {[%emt 0:00:15]} d3 {
[%emt 0:00:11]} 15. Nxd3 {[%emt 0:00:08]} Rac8 {[%emt 0:00:44]} 16. Nfe5 {
[%emt 0:00:11]} Nd5 {[%emt 0:00:11]} 17. Qh5 {[%emt 0:00:29]} Bf6 {[%emt 0:00:
08]} 18. Nxc6 {[%emt 0:00:25]} Bxc6 {[%emt 0:00:01]} 19. Qg4 {[%emt 0:00:25]}
Bxb2 20. Nxb2 {[%emt 0:00:01]} Qb7 {[%emt 0:00:13]} 21. Qh4 {[%emt 0:00:03]}
Nf6 {[%emt 0:00:05]} 22. Bxc6 {[%emt 0:00:18]} Rxc6 {[%emt 0:00:01]} 23. Nc4 {
[%emt 0:00:02]} h6 {[%emt 0:00:02]} 24. Ne5 {[%emt 0:00:04]} Rxc1 25. Rxc1 {
[%emt 0:00:00]} Rc8 {[%emt 0:00:07]} 26. Rxc8+ {[%emt 0:00:12]} Qxc8 {[%emt 0:
00:01]} 27. Qc4 {[%emt 0:00:01]} Qxc4 {[%emt 0:00:05]} 28. Nxc4 {[%emt 0:00:01]
} Kf8 {[%emt 0:00:02]} 29. Nd6 {[%emt 0:00:00]} Nd5 {[%emt 0:00:02]} 30. e4 {
[%emt 0:00:05]} Nc3 {[%emt 0:00:02]} 31. a4 {[%emt 0:00:03]} Ke7 {[%emt 0:00:
02]} 32. e5 {[%emt 0:00:00]} Kd7 {[%emt 0:00:01]} 33. Nxf7 {[%emt 0:00:02]} Ne4
{[%emt 0:00:03]} 34. Nd6 {[%emt 0:00:05]} Nc5 {[%emt 0:00:01]} 35. Nb5 {
[%emt 0:00:02]} Nxb3 {[%emt 0:00:03]} 36. Nxa7 {[%emt 0:00:01]} Nc5 {[%emt 0:
00:01]} 37. f4 {[%emt 0:00:04]} Nxa4 38. Kf2 {[%emt 0:00:02]} Nc5 {[%emt 0:00:
02]} 39. Ke3 {[%emt 0:00:01]} Kc7 {[%emt 0:00:05]} 40. Kd4 {[%emt 0:00:01]} Kb7
{[%emt 0:00:02]} 41. Nb5 {[%emt 0:00:01]} Kc6 {[%emt 0:00:01]} 42. Nd6 {
[%emt 0:00:03]} b5 {[%emt 0:00:02]} 43. Ne8 {[%emt 0:00:01]} Nb3+ {[%emt 0:00:
02]} 44. Kc3 {[%emt 0:00:01]} Nc5 {[%emt 0:00:01]} 45. Nxg7 {[%emt 0:00:01]}
Ne4+ {[%emt 0:00:04]} 46. Kd4 {[%emt 0:00:02]} Nf2 {[%emt 0:00:02]} 47. Nxe6 {
[%emt 0:00:03]} b4 {[%emt 0:00:01]} 48. Nc5 {[%emt 0:00:02]} Kb5 {[%emt 0:00:
03]} 49. e6 {[%emt 0:00:08]} Kc6 {[%emt 0:00:01]} 1-0

[Event "FIDE Women World Blitz 2021"]
[Site "Warsaw"]
[Date "2021.12.30"]
[Round "11.21"]
[White "Garifullina, Leya"]
[Black "Atalik, Ekaterina"]
[Result "0-1"]
[ECO "C65"]
[WhiteElo "2416"]
[BlackElo "2430"]
[Annotator "NA"]
[PlyCount "70"]
[EventDate "2021.12.29"]
[EventType "swiss"]
[EventCountry "POL"]
[Tiebreak "Cut1 Buchholz"]
[SourceTitle "playchess.com"]
[Source "ChessBase"]
[SourceQuality "1"]
[TimeControl "180+2"]

1. e4 {[%emt 0:00:02]} e5 {[%emt 0:00:01]} 2. Nf3 {[%emt 0:00:01]} Nc6 {
[%emt 0:00:01]} 3. Bb5 {[%emt 0:00:01]} Nf6 {[%emt 0:00:02]} 4. d3 {[%emt 0:00:
01]} d6 {[%emt 0:00:02]} 5. O-O {[%emt 0:00:02]} Be7 {[%emt 0:00:01]} 6. c3 {
[%emt 0:00:02]} O-O {[%emt 0:00:03]} 7. Re1 {[%emt 0:00:01]} Kh8 {[%emt 0:00:
06]} 8. Nbd2 {[%emt 0:00:04]} Ng4 {[%emt 0:00:05]} 9. h3 {[%emt 0:00:07]} Nh6 {
[%emt 0:00:02]} 10. Nf1 {[%emt 0:00:05]} f5 {[%emt 0:00:05]} 11. Bxh6 {[%emt 0:
00:12]} gxh6 {[%emt 0:00:01]} 12. exf5 {[%emt 0:00:02]} Bxf5 {[%emt 0:00:03]}
13. Ng3 {[%emt 0:00:03]} Bg6 {[%emt 0:00:06]} 14. d4 {[%emt 0:00:19]} exd4 {
[%emt 0:00:06]} 15. Bxc6 {[%emt 0:00:23]} bxc6 {[%emt 0:00:02]} 16. Nxd4 {
[%emt 0:00:02]} Qd7 {[%emt 0:00:08]} 17. Nxc6 {[%emt 0:00:18]} Bf6 {[%emt 0:00:
02]} 18. Nd4 {[%emt 0:00:02]} Rab8 {[%emt 0:00:03]} 19. Ne6 {[%emt 0:00:08]}
Rfe8 {[%emt 0:00:10]} 20. Nf4 {[%emt 0:00:18]} Rxe1+ {[%emt 0:00:07]} 21. Qxe1
{[%emt 0:00:01]} Rxb2 {[%emt 0:00:11]} 22. Nfh5 {[%emt 0:00:07]} Be5 {[%emt 0:
00:14]} 23. f4 {[%emt 0:00:06]} Qc6 {[%emt 0:00:03]} 24. Qf1 {[%emt 0:00:22]}
Bd3 {[%emt 0:00:06]} 25. Qf3 {[%emt 0:00:09]} Qxf3 {[%emt 0:00:04]} 26. gxf3 {
[%emt 0:00:02]} Bxc3 {[%emt 0:00:05]} 27. Rc1 {[%emt 0:00:06]} Rb1 {[%emt 0:00:
01]} 28. Rxb1 {[%emt 0:00:08]} Bxb1 {[%emt 0:00:01]} 29. Ne4 {[%emt 0:00:05]}
Bd4+ {[%emt 0:00:02]} 30. Kf1 {[%emt 0:00:01]} Bxa2 {[%emt 0:00:02]} 31. Ke2 {
[%emt 0:00:01]} Bc4+ {[%emt 0:00:01]} 32. Kd2 {[%emt 0:00:01]} a5 {[%emt 0:00:
03]} 33. Nc3 {[%emt 0:00:13]} Bb3 {[%emt 0:00:01]} 34. Ng3 {[%emt 0:00:05]} a4
{[%emt 0:00:01]} 35. Nf5 {[%emt 0:00:02]} Bf6 {[%emt 0:00:06]} 0-1

[Event "FIDE Women World Blitz 2021"]
[Site "Warsaw"]
[Date "2021.12.30"]
[Round "11.22"]
[White "Kurmangaliyeva, Liya"]
[Black "Mamedjarova, Zeinab"]
[Result "0-1"]
[ECO "C41"]
[WhiteElo "2222"]
[BlackElo "2249"]
[Annotator "NA"]
[PlyCount "84"]
[EventDate "2021.12.29"]
[EventType "swiss"]
[EventCountry "POL"]
[Tiebreak "Cut1 Buchholz"]
[SourceTitle "playchess.com"]
[Source "ChessBase"]
[SourceQuality "1"]
[TimeControl "180+2"]

1. e4 {[%emt 0:00:01]} e5 {[%emt 0:00:01]} 2. Nf3 {[%emt 0:00:02]} d6 3. d4 {
[%emt 0:00:04]} exd4 {[%emt 0:00:01]} 4. Nxd4 {[%emt 0:00:09]} Nf6 {[%emt 0:00:
01]} 5. Nc3 {[%emt 0:00:02]} Be7 {[%emt 0:00:00]} 6. g3 {[%emt 0:00:05]} O-O {
[%emt 0:00:02]} 7. Bg2 {[%emt 0:00:01]} c6 {[%emt 0:00:09]} 8. O-O {[%emt 0:00:
04]} a5 {[%emt 0:00:03]} 9. Re1 {[%emt 0:00:13]} Na6 {[%emt 0:00:03]} 10. h3 {
[%emt 0:00:05]} Re8 {[%emt 0:00:01]} 11. Kh1 {[%emt 0:00:18]} Bf8 {[%emt 0:00:
02]} 12. a3 {[%emt 0:00:46]} Nc5 {[%emt 0:00:07]} 13. Rb1 {[%emt 0:00:10]} a4 {
[%emt 0:00:05]} 14. g4 {[%emt 0:00:14]} Ra5 {[%emt 0:00:39]} 15. g5 {[%emt 0:
00:07]} Nfd7 {[%emt 0:00:04]} 16. Bd2 {[%emt 0:00:09]} Ne5 {[%emt 0:00:09]} 17.
Qe2 {[%emt 0:00:08]} g6 {[%emt 0:00:19]} 18. f4 {[%emt 0:00:02]} Ned7 {[%emt 0:
00:08]} 19. Qf2 {[%emt 0:00:04]} Bg7 {[%emt 0:00:02]} 20. Nce2 {[%emt 0:00:05]}
Nxe4 {[%emt 0:00:06]} 21. Bxe4 {[%emt 0:00:03]} Rxe4 {[%emt 0:00:00]} 22. Bxa5
{[%emt 0:00:02]} Qxa5 {[%emt 0:00:01]} 23. c3 {[%emt 0:00:04]} Nc5 {[%emt 0:00:
04]} 24. Ng3 {[%emt 0:00:02]} Nd3 {[%emt 0:00:04]} 25. Qd2 {[%emt 0:00:09]}
Rxe1+ {[%emt 0:00:06]} 26. Rxe1 {[%emt 0:00:02]} Nxe1 {[%emt 0:00:04]} 27. Qxe1
{[%emt 0:00:01]} Qd8 {[%emt 0:00:09]} 28. Kh2 {[%emt 0:00:04]} c5 {[%emt 0:00:
06]} 29. Nc2 {[%emt 0:00:09]} Qd7 {[%emt 0:00:01]} 30. Qf1 {[%emt 0:00:02]} h5
{[%emt 0:00:05]} 31. Ne3 {[%emt 0:00:04]} h4 {[%emt 0:00:02]} 32. Ne4 {[%emt 0:
00:02]} Qe6 {[%emt 0:00:01]} 33. Qf3 {[%emt 0:00:03]} Bd7 {[%emt 0:00:12]} 34.
Nd5 {[%emt 0:00:17]} Bc6 {[%emt 0:00:16]} 35. c4 {[%emt 0:00:01]} Bxb2 {
[%emt 0:00:05]} 36. Qe2 {[%emt 0:00:09]} Bxd5 {[%emt 0:00:07]} 37. cxd5 {
[%emt 0:00:01]} Qxd5 {[%emt 0:00:03]} 38. Nf2 {[%emt 0:00:02]} Bg7 {[%emt 0:00:
03]} 39. Ng4 {[%emt 0:00:03]} Qe6 {[%emt 0:00:06]} 40. Qb5 {[%emt 0:00:01]} Qe4
{[%emt 0:00:05]} 41. Qf1 {[%emt 0:00:09]} c4 {[%emt 0:00:03]} 42. Qf2 {[%emt 0:
00:03]} c3 {[%emt 0:00:04]} 0-1